Cogmind - Beta 14 @@@ ROGUE MODE // 2024.10.24 @ 20:41:48 Player: Spoing Result: Destroyed by C-57 Dissector with Dual-blade Saw Performance ------------- Evolutions (8) 4000 Regions Visited (11) 2200 Robots Destroyed (17) 85 Value Destroyed (667) 667 Prototype IDs (41) 820 Alien Tech Used (0) 0 Bonus (110) 110 TOTAL SCORE: 7882 Bonus ------- Aligned with FarCom 300 Friendly Fire -190 Cogmind --------- Core Integrity 0/1450 Matter 271/300 Energy 39/100 System Corruption 2% Temperature Cool (9) Movement Core (50) Location -2/Research Parts ------- > --- POWER (3) -------- (None) > --- PROPULSION (9) --- (None) > --- UTILITY (9) ------ (None) > --- WEAPON (2) ------- (None) > --- INVENTORY (5) ---- Improved Heat Sink Advanced Weight Redist. System ECM Suite System Shield Enhanced Nova Cannon Peak State ------------ > --- POWER ------------ F-cell Engine Heavy Antimatter Reactor Micro Antimatter Reactor > --- PROPULSION ------- VTOL Module Cesium-ion Thruster Improved VTOL Module Nuclear Pulse Array Field Propulsion Array Impulse Thruster Array > --- UTILITY ---------- Power Amplifier Advanced Heat Sink Medium Storage Unit Advanced Gravity Neutralizer Experimental Signal Interpreter Advanced ECM Suite Hacking Suite System Shield Improved System Shield > --- WEAPON ----------- Kinetic Spear > --- INVENTORY -------- Quantum Reactor Improved Q-thruster Advanced Power Amplifier Advanced Cryofiber Web Improved Heat Sink Experimental Coolant Injector Advanced Weight Redist. System ECM Suite Improved Reaction Control System System Shield [Rating: 127] Favorites ----------- Power Ion Engine Engine Ion Engine Power Core Light Fission Core Reactor Micro Antimatter Reactor Propulsion Wheel Treads Light Treads Leg Aluminum Leg Wheel Wheel Flight Unit Cesium-ion Thruster Utility System Shield Device Advanced Heat Sink Storage Huge Storage Unit Processor Modified TNC Hackware System Shield Weapon Assault Rifle Ballistic Gun Assault Rifle Launcher Rocket Launcher Impact Weapon Heavy Flail Slashing Weapon Mining Claw Piercing Weapon Kinetic Spear Build | -11 -10 -10 -10 -9 -8 -7 -6 -5 -4 -3 -2 ------- Run | Yrd Mat Min Exi Min Mat Fac Fac Fac Fac Res Res Slots Evolved 16 | . . . . . 4 2 2 2 2 2 2 Power 2 | . . . . . . 1 . . . . 1 Propulsion 7 | . . . . . 2 1 1 . 2 . 1 Utility 7 | . . . . . 2 . 1 2 . 2 . Weapon . | . . . . . . . . . . . . Parts Attached 89 | 5 2 3 . . 9 13 15 6 1 19 16 Power 11 | 1 . 1 . . . 1 3 . . 3 2 Engine 5 | 1 . 1 . . . . 2 . . 1 . Core 2 | . . . . . . 1 1 . . . . Reactor 4 | . . . . . . . . . . 2 2 Propulsion 33 | 2 . 2 . . 2 6 5 1 1 4 10 Treads 4 | . . . . . 2 2 . . . . . Leg 3 | . . . . . . 3 . . . . . Wheel 5 | 2 . 2 . . . 1 . . . . . Hover . | . . . . . . . . . . . . Flight 21 | . . . . . . . 5 1 1 4 10 Utility 29 | 1 1 . . . 4 . 3 5 . 12 3 Device 20 | . . . . . 1 . 2 3 . 11 3 Storage 3 | 1 1 . . . . . 1 . . . . Processor 2 | . . . . . 1 . . . . 1 . Hackware 4 | . . . . . 2 . . 2 . . . Protection . | . . . . . . . . . . . . Artifact . | . . . . . . . . . . . . Weapon 16 | 1 1 . . . 3 6 4 . . . 1 Energy Gun . | . . . . . . . . . . . . Energy Cannon . | . . . . . . . . . . . . Ballistic Gun 11 | 1 1 . . . 1 4 4 . . . . Ballistic Cannon . | . . . . . . . . . . . . Launcher 2 | . . . . . . 2 . . . . . Special Weapon . | . . . . . . . . . . . . Impact Weapon 1 | . . . . . 1 . . . . . . Slashing Weapon 1 | . . . . . 1 . . . . . . Piercing Weapon 1 | . . . . . . . . . . . 1 Special Melee Weapon . | . . . . . . . . . . . . Unidentified Prototypes 10 | . . . . . 1 . 2 1 . 3 3 Parts Lost 22 | . . 3 . . . 2 . . 1 3 13 Power 5 | . . 1 . . . 1 . . . . 3 Propulsion 12 | . . 2 . . . 1 . . . 3 6 Utility 5 | . . . . . . . . . 1 . 4 Weapon . | . . . . . . . . . . . . Highest Loss Streak 11 | . . 3 . . . 1 . . 1 3 11 To Critical Strikes . | . . . . . . . . . . . . Average Slot Usage (%) 83 | . 72 83 85 85 100 76 75 94 89 82 74 Engine 7 | . 14 13 14 14 9 2 4 5 5 4 2 Reactor 1 | . . . . . . . . . . 3 9 Treads 3 | . . . . . 18 11 2 . . . . Leg 2 | . . . . . . 10 7 . . . . Wheel 13 | . 28 27 28 28 18 9 2 . . . . Flight 10 | . . . . . . . 17 29 36 31 24 Device 5 | . . . . . 1 . 7 10 10 21 15 Storage 8 | . 14 14 14 14 9 7 6 5 5 4 3 Processor 2 | . . . . . 9 7 2 . . . 3 Hackware 10 | . . . . . 16 15 13 22 21 14 12 Ballistic Gun 13 | . 15 28 28 28 12 6 8 11 5 . . Peak Build Rating 127 | 5 7 8 9 10 29 32 50 65 75 100 127 Average Rating 38 | 3 5 7 8 9 25 26 37 59 72 83 115 On Entrance 30 | . 5 7 8 9 10 26 25 50 65 70 95 Naked Turns 5 | . . . . . . . . . . . 5 Heaviest Build 98 | 10 87 89 89 89 90 92 98 33 30 46 61 Greatest Support 78 | 26 26 26 20 20 20 20 33 40 53 60 78 Greatest Overweight (x) 9 | . 3 4 4 4 4 9 9 1 . . 1 Average Overweight (x) 1 | . 1 3 4 4 4 5 . . . . . Largest Inventory Capacity 25 | 8 25 25 25 25 25 25 25 10 10 10 10 Average Capacity 19 | 7 20 25 25 25 25 25 15 10 10 10 9 Most Carried 25 | 5 13 18 21 24 23 25 25 10 10 10 10 Average Carried 15 | 2 8 16 18 21 21 22 14 9 9 9 8 Final Capacity 25 | 8 25 25 25 25 25 25 10 10 10 10 5 Final Carried 24 | 3 12 17 21 24 23 23 10 10 10 9 5 Class Distribution -------------------- 36% | Mutant 35% | Hacker-Sprinter 26% | Hacker-Mutant Dominant Class ---------------- Mutant | -10/Materials Mutant | -10/Mines Mutant | -10/Exiles Mutant | -9/Mines Hacker-Mutant | -8/Materials Hacker-Mutant | -7/Factory Hacker-Sprinter | -6/Factory Hacker-Sprinter | -5/Factory Hacker-Sprinter | -4/Factory Hacker-Sprinter | -3/Research Hacker-Sprinter | -2/Research Resources | -11 -10 -10 -10 -9 -8 -7 -6 -5 -4 -3 -2 ----------- Run | Yrd Mat Min Exi Min Mat Fac Fac Fac Fac Res Res Matter Collected 1506 | 242 . 168 . 151 67 178 261 160 . 122 157 Remotely . | . . . . . . . . . . . . Salvage Created 625 | . . 198 . . 47 297 83 . . . . Parts 22 | . . 5 . . 1 13 3 . . . . Haulers Intercepted 2 | . . . . . 1 . 1 . . . . Recyclers Shooed 1 | . . . . . . 1 . . . . . Parts Field Recycled . | . . . . . . . . . . . . Retrieved Matter . | . . . . . . . . . . . . Parts Self-Destructed . | . . . . . . . . . . . . Prevented . | . . . . . . . . . . . . Kills | -11 -10 -10 -10 -9 -8 -7 -6 -5 -4 -3 -2 ------- Run | Yrd Mat Min Exi Min Mat Fac Fac Fac Fac Res Res Combat Hostiles Destroyed 13 | . . 5 . . . 8 . . . . . Guns 11 | . . 5 . . . 6 . . . . . AOE 2 | . . . . . . 2 . . . . . Classes Destroyed 5 | . . 2 . . 1 2 . . . . . Tunneler 1 | . . . . . . 1 . . . . . Hauler 2 | . . . . . 1 . 1 . . . . Grunt 10 | . . 3 . . . 7 . . . . . Demolisher 2 | . . 2 . . . . . . . . . Programmer 1 | . . . . . . 1 . . . . . Thug 1 | . . 1 . . . . . . . . . Best Kill Streak 5 | . . 3 . . 1 5 1 . . . . Combat Bots Only 4 | . . 3 . . . 4 . . . . . Max Kills in Single Turn 2 | . . 1 . . 1 2 1 . . . . Gunslinging . | . . . . . . . . . . . . Exploded 1 | . . . . . . 1 . . . . . Melee . | . . . . . . . . . . . . Uniques/NPCs Destroyed . | . . . . . . . . . . . . Combat | -11 -10 -10 -10 -9 -8 -7 -6 -5 -4 -3 -2 -------- Run | Yrd Mat Min Exi Min Mat Fac Fac Fac Fac Res Res Hostile Shots Fired 235 | . . 18 . . . 68 . 8 13 4 124 Missed 89 | . . 4 . . . 20 . 6 4 2 53 Damage Taken 4494 | . . 430 . . 42 805 71 109 155 261 2621 Core 1796 | . . 161 . . . 117 . 25 . 24 1469 Absorbed by Shields . | . . . . . . . . . . . . Core Remaining (%) 89 | 100 . . . 35 100 83 100 97 100 98 . Volleys Fired 51 | . . 20 . . 1 26 3 1 . . . Largest 2 | . . 2 . . 2 2 2 2 . . . Hottest 63 | . . 40 . . 40 63 50 50 . . . Shots Fired 102 | . . 40 . . 2 52 6 2 . . . Gun 98 | . . 40 . . 2 48 6 2 . . . Cannon . | . . . . . . . . . . . . Launcher 4 | . . . . . . 4 . . . . . Special . | . . . . . . . . . . . . Kinetic 98 | . . 40 . . 2 48 6 2 . . . Thermal . | . . . . . . . . . . . . Explosive 4 | . . . . . . 4 . . . . . Electromagnetic . | . . . . . . . . . . . . Robot Hit Streak 9 | . . 5 . . 3 9 6 . . . . Robot Miss Streak 3 | . . 3 . . . 2 1 . . . . Penetration Max . | . . . . . . . . . . . . Secondary Targets 3 | . . 1 . . . 2 . . . . . Max Gunslinging Chain 1 | . . 1 . . . 1 . . . . . Shots Hit Robots 66 | . . 22 . . 3 36 5 . . . . Core Hits 34 | . . 8 . . 1 20 3 1 . . 1 Critical Kills . | . . . . . . . . . . . . Critical Parts Destroyed 1 | . . . . . 1 . . . . . . Critical Strikes 2 | . . 1 . . 1 . . . . . . Destroy 1 | . . 1 . . . . . . . . . Smash 1 | . . . . . 1 . . . . . . Melee Attacks 25 | . . . . . 25 . . . . . . Impact 18 | . . . . . 18 . . . . . . Slashing 7 | . . . . . 7 . . . . . . Piercing . | . . . . . . . . . . . . Sneak Attacks 1 | . . . . . 1 . . . . . . Combat Hostiles . | . . . . . . . . . . . . Follow-up Attacks . | . . . . . . . . . . . . Damage Inflicted 1526 | . . 284 . . 116 1015 86 17 6 . 2 Guns 1041 | . . 284 . . 25 630 86 16 . . . Cannons . | . . . . . . . . . . . . Explosions 385 | . . . . . . 385 . . . . . Melee 91 | . . . . . 91 . . . . . . Ramming 9 | . . . . . . . . 1 6 . 2 Kinetic 1041 | . . 284 . . 25 630 86 16 . . . Thermal . | . . . . . . . . . . . . Explosive 385 | . . . . . . 385 . . . . . Electromagnetic . | . . . . . . . . . . . . Impact 91 | . . . . . 91 . . . . . . Slashing . | . . . . . . . . . . . . Piercing . | . . . . . . . . . . . . Highest Corruption 2 | . . . . . . 1 . . . 2 2 Average Corruption 1 | . . . . . . 1 . . . 1 2 Corruption Purged . | . . . . . . . . . . . . Corruption Blocked . | . . . . . . . . . . . . Effects 3 | . . . . . . 1 . . . 1 1 Message Errors 1 | . . . . . . 1 . . . . . Matter Fused 1 | . . . . . . . . . . 1 . Heat Flow Errors 1 | . . . . . . . . . . . 1 Overload Shots . | . . . . . . . . . . . . Overflow Damage 99 | . . . . . 91 8 . . . . . Projectiles . | . . . . . . . . . . . . Explosions 8 | . . . . . . 8 . . . . . Melee 91 | . . . . . 91 . . . . . . Knockbacks . | . . . . . . . . . . . . Impact . | . . . . . . . . . . . . Kinetic . | . . . . . . . . . . . . Secondary . | . . . . . . . . . . . . Self-Inflicted Damage 19 | . . . . . . 16 . . 2 . 1 Shots 1 | . . . . . . 1 . . . . . Rammed 5 | . . . . . . . . 1 3 . 1 Targets Rammed 5 | . . . . . . . . 1 3 . 1 Kicked . | . . . . . . . . . . . . Crushed . | . . . . . . . . . . . . Highest Temperature 149 | . . . . . . 49 . 6 15 2 149 Average Temperature 11 | . . . . . . 20 . 4 3 1 16 Received Heat Transfer 562 | . . 30 . . . 423 . 9 55 . 45 Siege Activations . | . . . . . . . . . . . . Robots Corrupted 1 | . . . . . 1 . . . . . . Combat Hostiles . | . . . . . . . . . . . . Parts Fried 2 | . . . . . 2 . . . . . . Impact Corruptions 1 | . . . . . 1 . . . . . . Robots Melted . | . . . . . . . . . . . . Combat Hostiles . | . . . . . . . . . . . . Parts Melted 2 | . . 2 . . . . . . . . . Heat Transferred . | . . . . . . . . . . . . Parts Sabotaged . | . . . . . . . . . . . . Parts Stolen . | . . . . . . . . . . . . Parts Stripped . | . . . . . . . . . . . . Power Chain Reactions . | . . . . . . . . . . . . Alert | -11 -10 -10 -10 -9 -8 -7 -6 -5 -4 -3 -2 ------- Run | Yrd Mat Min Exi Min Mat Fac Fac Fac Fac Res Res Peak Influence 250 | . 14 95 . . 25 250 101 99 63 29 48 Initial 48 | . . 5 . . . 8 24 11 48 27 . Average 33 | . 6 56 . . 14 75 40 38 48 16 8 Maximum Alert Level 1 | . . . . . . 1 . . . . . Low Security (%) 97 | 100 100 100 . 100 100 82 100 100 100 100 100 Level 1 2 | . . . . . . 17 . . . . . Level 2 . | . . . . . . . . . . . . Level 3 . | . . . . . . . . . . . . Level 4 . | . . . . . . . . . . . . Level 5 . | . . . . . . . . . . . . High Security . | . . . . . . . . . . . . Max Security . | . . . . . . . . . . . . Squads Dispatched 13 | . . 1 . . 1 3 . 2 1 1 4 Investigation 6 | . . 1 . . . 2 . 1 1 . 1 Extermination 3 | . . . . . . 1 . . . 1 1 Reinforcement 3 | . . . . . . . . 1 . . 2 Assault . | . . . . . . . . . . . . Garrison 1 | . . . . . 1 . . . . . . Intercept . | . . . . . . . . . . . . Searches Triggered . | . . . . . . . . . . . . Construction Impeded 1 | . . . . . . . . 1 . . . Haulers Reinforced . | . . . . . . . . . . . . Active Scanning Responses . | . . . . . . . . . . . . Cargo Convoy Interrupts . | . . . . . . . . . . . . Stealth | -11 -10 -10 -10 -9 -8 -7 -6 -5 -4 -3 -2 --------- Run | Yrd Mat Min Exi Min Mat Fac Fac Fac Fac Res Res Distress Signals 5 | . . . . . 1 . . . . 2 2 Communications Jammed . | . . . . . . . . . . . . Distress Signals . | . . . . . . . . . . . . Times Spotted 72 | . 1 5 . . 2 12 1 3 8 6 34 Peak Tracking Total 18 | . 1 3 . . 2 6 2 2 8 4 18 Tactical Retreats 9 | . . . . . 1 . 1 . . 2 5 Traps | -11 -10 -10 -10 -9 -8 -7 -6 -5 -4 -3 -2 ------- Run | Yrd Mat Min Exi Min Mat Fac Fac Fac Fac Res Res Traps Triggered 9 | . . . . . 1 3 1 1 . 2 1 Indirectly . | . . . . . . . . . . . . Trap Hack Attempts . | . . . . . . . . . . . . Triggered . | . . . . . . . . . . . . Disarmed . | . . . . . . . . . . . . Reprogrammed . | . . . . . . . . . . . . Reused . | . . . . . . . . . . . . Traps Extracted . | . . . . . . . . . . . . Installed . | . . . . . . . . . . . . Triggered . | . . . . . . . . . . . . Machines | -11 -10 -10 -10 -9 -8 -7 -6 -5 -4 -3 -2 ---------- Run | Yrd Mat Min Exi Min Mat Fac Fac Fac Fac Res Res Machines Disabled 3 | . . . . . . 3 . . . . . Max in Single Turn 3 | . . . . . . 3 . . . . . Garrison Access 4 | . . . . . . . 1 2 . 1 . Machines Repaired . | . . . . . . . . . . . . Machines Dismantled . | . . . . . . . . . . . . Machines Sabotaged . | . . . . . . . . . . . . Overloaded Fab Kills . | . . . . . . . . . . . . Hacking | -11 -10 -10 -10 -9 -8 -7 -6 -5 -4 -3 -2 --------- Run | Yrd Mat Min Exi Min Mat Fac Fac Fac Fac Res Res Machines Accessed 31 | . 3 1 1 . 5 3 6 6 1 3 2 Terminals 18 | . 3 . . . 2 1 5 3 . 2 2 Fabricators 4 | . . . . . . 2 . 1 1 . . Repair Stations 1 | . . . . . 1 . . . . . . Recycling Units . | . . . . . . . . . . . . Scanalyzers 2 | . . . . . 2 . . . . . . Garrison Access 4 | . . . . . . . 1 2 . 1 . Total Hacks 109 | . 5 1 1 . 24 9 26 26 4 7 6 Successful 67 | . 2 1 1 . 22 7 14 12 3 2 3 Failed 42 | . 3 . . . 2 2 12 14 1 5 3 Catastrophic 7 | . 2 . . . . . 1 1 . 1 2 Database Lockouts . | . . . . . . . . . . . . Manual 36 | . . . 1 . 3 4 11 9 . 3 5 Terminals 66 | . 5 . . . 6 4 23 16 . 6 6 Fabricators 11 | . . . . . . 5 . 2 4 . . Repair Stations 2 | . . . . . 2 . . . . . . Recycling Units . | . . . . . . . . . . . . Scanalyzers 16 | . . . . . 16 . . . . . . Garrison Access 12 | . . . . . . . 3 8 . 1 . Terminal Hacks 27 | . 2 1 1 . 3 2 9 5 . 1 3 Record 2 | . . . . . . . 1 1 . . . Robot Analysis 3 | . . . . . 2 . 1 . . . . Prototype ID Bank 3 | . 1 . . . . . 1 1 . . . Open Door 1 | . . 1 . . . . . . . . . Level Access Points 2 | . . . . . . . 1 . . . 1 Branch Access Points 3 | . . . . . 1 1 1 . . . . Emergency Access Points 1 | . . . . . . . . . . 1 . Terminal Index 2 | . . . . . . . 1 1 . . . Fabricator Index 1 | . . . . . . 1 . . . . . Alert Level 3 | . . . . . . . 1 1 . . 1 Locate Traps 2 | . 1 . . . . . . . . . 1 Registered Components 1 | . . . . . . . . 1 . . . Zone Layout 2 | . . . . . . . 2 . . . . Derelict Proto ID Bank 1 | . . . 1 . . . . . . . . Fabricator Hacks 9 | . . . . . . 4 . 2 3 . . Load Schematic 4 | . . . . . . 2 . 1 1 . . Build 5 | . . . . . . 2 . 1 2 . . Repair Station Hacks 2 | . . . . . 2 . . . . . . Scan Component 1 | . . . . . 1 . . . . . . Repair 1 | . . . . . 1 . . . . . . Recycling Unit Hacks . | . . . . . . . . . . . . Scanalyzer 16 | . . . . . 16 . . . . . . Insert Component 7 | . . . . . 7 . . . . . . Analyze 9 | . . . . . 9 . . . . . . Garrison Access Hacks 4 | . . . . . . . 1 2 . 1 . Seal Access 4 | . . . . . . . 1 2 . 1 . Unauthorized Hacks 9 | . . . . . 1 1 4 3 . . . Terminals 9 | . . . . . 1 1 4 3 . . . Botnet 9 | . . . . . 1 1 4 3 . . . Fabricators . | . . . . . . . . . . . . Repair Stations . | . . . . . . . . . . . . Recycling Units . | . . . . . . . . . . . . Scanalyzers . | . . . . . . . . . . . . Garrison Access . | . . . . . . . . . . . . Data Cores Recovered . | . . . . . . . . . . . . Used . | . . . . . . . . . . . . Hacking Detections 25 | . 3 . . . 4 3 6 4 1 2 2 Full Trace Events 4 | . . . . . . 2 . 1 1 . . Feedback Events . | . . . . . . . . . . . . Feedback Blocked . | . . . . . . . . . . . . Robot Schematics Acquired . | . . . . . . . . . . . . Robots Built . | . . . . . . . . . . . . Authchips . | . . . . . . . . . . . . Time . | . . . . . . . . . . . . Total Robot Build Rating . | . . . . . . . . . . . . Part Schematics Acquired 7 | . . . . . 7 . . . . . . Parts Built 7 | . . . . . . 4 . 2 1 . . Authchips . | . . . . . . . . . . . . Time 442 | . . . . . . 109 . 73 260 . . Total Part Build Rating 25 | . . . . . . 12 . 6 7 . . Parts Repaired 1 | . . . . . 1 . . . . . . Time 53 | . . . . . 53 . . . . . . Parts Recycled . | . . . . . . . . . . . . Recycled Matter . | . . . . . . . . . . . . Retrieved Matter . | . . . . . . . . . . . . Retrieved Components . | . . . . . . . . . . . . Parts Scanalyzed 7 | . . . . . 7 . . . . . . Part Schematics Acquired 7 | . . . . . 7 . . . . . . Parts Damaged 1 | . . . . . 1 . . . . . . Bothacking | -11 -10 -10 -10 -9 -8 -7 -6 -5 -4 -3 -2 ------------ Run | Yrd Mat Min Exi Min Mat Fac Fac Fac Fac Res Res Used RIF Installer . | . . . . . . . . . . . . Robots Hacked . | . . . . . . . . . . . . Non-combat . | . . . . . . . . . . . . Combat . | . . . . . . . . . . . . Robot Hacks Applied . | . . . . . . . . . . . . Relay Couplers Released . | . . . . . . . . . . . . Fabnet Peak Effective % . | . . . . . . . . . . . . Robots Rewired . | . . . . . . . . . . . . Allies Hacked . | . . . . . . . . . . . . Hacks Repelled . | . . . . . . . . . . . . Allies | -11 -10 -10 -10 -9 -8 -7 -6 -5 -4 -3 -2 -------- Run | Yrd Mat Min Exi Min Mat Fac Fac Fac Fac Res Res Total Allies 1 | . . 1 . . . . . . . . . Largest Group 1 | . . 1 . . . . . . . . . Highest-Rated Group 31 | . . 31 . . . . . . . . . Highest-Rated Ally 31 | . . 31 . . . . . . . . . Total Orders 1 | . . . . . . . . . . 1 . EXPLORE 1 | . . . . . . . . . . 1 . Ally Attacks . | . . . . . . . . . . . . Total Damage . | . . . . . . . . . . . . Kills . | . . . . . . . . . . . . Allies Corrupted . | . . . . . . . . . . . . Allies Melted . | . . . . . . . . . . . . Intel | -11 -10 -10 -10 -9 -8 -7 -6 -5 -4 -3 -2 ------- Run | Yrd Mat Min Exi Min Mat Fac Fac Fac Fac Res Res Robot Analysis Total 3 | . . . . . 2 . 1 . . . . Derelict Logs Recovered 3 | . . 2 . 1 . . . . . . . Drone Launches 1 | . . . . . . . . . . 1 . Drone Recoveries . | . . . . . . . . . . . . Exploration | -11 -10 -10 -10 -9 -8 -7 -6 -5 -4 -3 -2 ------------- Run | Yrd Mat Min Exi Min Mat Fac Fac Fac Fac Res Res Turns Passed 4835 | 43 151 539 684 316 568 624 498 330 227 423 432 Spaces Moved 6331 | 37 117 341 485 220 277 313 845 1097 178 1214 1207 Core 17 | 8 . . . . . . . . . . 9 Treads . | . . . . . . . . . . . . Legs . | . . . . . . . . . . . . Wheels 1870 | 29 117 341 485 220 277 313 88 . . . . Hover . | . . . . . . . . . . . . Flight 4444 | . . . . . . . 757 1097 178 1214 1198 Fastest Speed 19 | 50 90 135 140 140 140 125 23 21 19 19 23 Average Speed 58 | 81 118 137 140 140 140 168 42 22 19 20 24 Slowest Speed 215 | 90 135 140 140 140 140 215 215 101 19 25 100 Overloaded Moves . | . . . . . . . . . . . . Propulsion Burnouts . | . . . . . . . . . . . . Robots Hopped 34 | . . . . . . . 5 3 . 5 21 Cave-ins Triggered . | . . . . . . . . . . . . Exploration Rate (%) 30 | 3 23 60 89 64 22 7 23 17 7 20 29 Regions Visited 11 Branch Regions 3 Pre-discovered Areas 2 | . . 2 . . . . . . . . . Known Exits Taken 3 | . . . 1 . . . 1 . . 1 . Unknown Exits Taken 8 | 1 1 1 . 1 1 1 . 1 1 . . Scrap Searched 4 | . . 1 . 3 . . . . . . . Spaces Dug 21 | . . . . . 21 . . . . . . Terrain Destroyed 22 | . . . . . 21 1 . . . . . Melee 21 | . . . . . 21 . . . . . . Projectile . | . . . . . . . . . . . . AOE 1 | . . . . . . 1 . . . . . Terrain Rammed . | . . . . . . . . . . . . Walls Destroyed . | . . . . . . . . . . . . Machines Disabled . | . . . . . . . . . . . . Actions | -11 -10 -10 -10 -9 -8 -7 -6 -5 -4 -3 -2 --------- Run | Yrd Mat Min Exi Min Mat Fac Fac Fac Fac Res Res Total 7293 | 49 130 373 491 228 413 366 982 1173 370 1388 1330 Wait 685 | . . 2 . 6 95 4 88 62 187 132 109 Move 6260 | 36 116 340 484 219 276 312 834 1091 178 1203 1171 Hop 28 | . . . . . . . 5 3 . 5 15 Pick Up 87 | 8 11 8 5 3 6 7 13 4 1 11 10 Fast Attach 13 | . . . . . . . 2 3 . 5 3 Attach 54 | 5 2 3 . . 5 8 9 3 1 8 10 Detach 10 | . . . . . . 3 1 1 1 4 . Swap 22 | . . . . . 4 5 4 . . 6 3 Drop 55 | . 1 . 2 . 1 1 23 5 . 14 8 Fire 51 | . . 20 . . 1 26 3 1 . . . Melee 25 | . . . . . 25 . . . . . . Ram 3 | . . . . . . . . . 2 . 1 Kick . | . . . . . . . . . . . . Crush . | . . . . . . . . . . . . Escape Stasis . | . . . . . . . . . . . . Rewire . | . . . . . . . . . . . . Trap . | . . . . . . . . . . . . Miscellaneous . | . . . . . . . . . . . . Route ------- -11/Scrapyard -10/Materials -10/Mines (discovered 2 exits: [*Mat] / *Exi) -10/Exiles (discovered 2 exits: *Min x2) -9/Mines -8/Materials -7/Factory (discovered 5 exits: *Fac x2 / Sto / Low x2) -6/Factory (discovered 6 exits: *Fac x4 / Low x2) -5/Factory -4/Factory -3/Research -2/Research (discovered 4 exits: Acc x3 / *Qua) History --------- Turn | Location | Event 19 | -11/Scrapyard | Discovered new exit (range 15) 44 | -11/Scrapyard | Entered Materials 72 | -10/Materials | Discovered new exit (range 9) 195 | -10/Materials | Entered Mines 196 | -10/Mines | Assembled infested the area 212 | -10/Mines | Escorted by a lone wolf Derelict 232 | -10/Mines | Learned location of Storage (-7) 310 | -10/Mines | Build established: Mutant 320 | -10/Mines | Met a Derelict shopkeep closing up shop 408 | -10/Mines | Discovered new exit (range 5) 530 | -10/Mines | Core integrity fell below 50% 555 | -10/Mines | Lost 3 parts (1p2n) 711 | -10/Mines | Found DCF Scrap (9 items) 727 | -10/Mines | Deemed a non-threat by the Exiles lab entrance 729 | -10/Mines | Discovered new exit (range 5) 734 | -10/Mines | Entered Exiles 735 | -10/Exiles | Identified exit to Mines 768 | -10/Exiles | Met 8R-AWN 793 | -10/Exiles | Met EX-HEX 832 | -10/Exiles | Met EX-BIN 858 | -10/Exiles | Aligned with FarCom system 859 | -10/Exiles | Given EX-Vault access code 891 | -10/Exiles | Opened EX-Vault 900 | -10/Exiles | Found Modified TNC 929 | -10/Exiles | Warned to stay clear of 0b10 Research branches 966 | -10/Exiles | Met EX-DEC 1160 | -10/Exiles | Visited The Gauntlet 1418 | -10/Exiles | Left Exiles lab with Modified TNC 1418 | -10/Exiles | Entered Mines 1660 | -9/Mines | Found a damaged Exp. Sensor Array with a note attached 1663 | -9/Mines | Found Prototype Device 1671 | -9/Mines | Learned Materials emergency access door positions 1714 | -9/Mines | Discovered new exit (range 8) 1726 | -9/Mines | Received a Rocket Launcher from a helpful Derelict 1734 | -9/Mines | Entered Materials 1734 | -8/Materials | Evolved 4 slots: Propulsion x2, Utility x2 1737 | -8/Materials | Identified Exp. Sensor Array 2039 | -8/Materials | Garrison activated, responded to threat 2133 | -8/Materials | Build established: Hacker-Mutant 2169 | -8/Materials | Discovered new exit (range 11) 2279 | -8/Materials | Repaired Broken Imp. Heat Sink 2302 | -8/Materials | Entered Factory 2302 | -7/Factory | Evolved 2 slots: Power x1, Propulsion x1 2360 | -7/Factory | Discovered new exit (range 5) 2385 | -7/Factory | Discovered new exit (range 15) 2437 | -7/Factory | Identified exit to Storage 2437 | -7/Factory | Identified exit to Lower Caves 2498 | -7/Factory | Fabricated Cesium-ion Thruster? 2724 | -7/Factory | Fabricated Cesium-ion Thruster? 2926 | -7/Factory | Entered another Factory area 2926 | -6/Factory | Evolved 2 slots: Propulsion x1, Utility x1 3173 | -6/Factory | Identified exit to Lower Caves 3360 | -6/Factory | Identified exit to Factory 3396 | -6/Factory | Build established: Hacker-Sprinter 3424 | -6/Factory | Entered another Factory area 3424 | -5/Factory | Evolved 2 slots: Utility x2 3545 | -5/Factory | Fabricated Cesium-ion Thruster? 3752 | -5/Factory | Discovered new exit (range 9) 3754 | -5/Factory | Entered another Factory area 3754 | -4/Factory | Evolved 2 slots: Propulsion x2 3785 | -4/Factory | Discovered new exit (range 15) 3975 | -4/Factory | Fabricated Exp. Signal Interpreter (x1) 3981 | -4/Factory | Entered Research 3981 | -3/Research | Evolved 2 slots: Utility x2 4040 | -3/Research | Discovered new exit (range 4) 4353 | -3/Research | Lost 3 parts (3n) 4404 | -3/Research | Identified exit to Research 4404 | -3/Research | Entered another Research area 4404 | -2/Research | Evolved 2 slots: Power x1, Propulsion x1 4716 | -2/Research | Spotted B-90 Cyclops 4748 | -2/Research | Discovered new exit (range 6) 4749 | -2/Research | Identified exit to Quarantine 4787 | -2/Research | Identified exit to Access 4822 | -2/Research | Core integrity fell below 50% 4832 | -2/Research | Core integrity fell below 20% 4836 | -2/Research | Destroyed by C-57 Dissector with Dual-blade Saw Last Messages --------------- Adv. Heat Sink severed. Adv. Gravity Neutralizer severed. Acquired Adv. Gravity Neutralizer. Imp. Q-thruster severed. Slug penetrates Wall. Mic. Antimatter Reactor destroyed. System corrupted: Heat flow error (+196). Field Propulsion Drive severed. Acquired Imp. Q-thruster. Adv. Power Amplifier severed. Slug penetrates Wall. System Shield destroyed. Adv. Gravity Neutralizer severed. Slammed into K-01 Serf. K-01 Serf suffers critical hit (Burn). Imp. Q-thruster severed. Dropped Med. Storage Unit. Exp. Coolant Injector severed. Hacking Suite severed. Imp. System Shield severed. Map ----- +----------------------------------------------------+ | ???????????????????????????????????# + # | | ???????????????????????????????????# ^# # | | ???????????????????????????????????# # # | | ######?????????????????????????????# ?# # | | #????????????????????????#############?# # | | = #####????????????????????* ?# %# | | > #??#####???????????? # # | | ### #??# #???????????? #% % | | #?# #??# #???????????? / | | ######?# #??# #?????????????????"""""" # | | ???????# #??# #???????????????????"""" !# | | ######?# #??# #?????????????????? ?# | | # ?# #??# #??????????????????########## | | # # #??# ######################### | | # !! # #####+## | | # !! + HH | | # #+######## h % | | # # ?# !! h ! [[ | | ######?# ?# !=######/####### [[ | | ???????# # !# ! +w [[ | | ???????# # !==# ! ########### | | ???????#!!! + ! # = #?????????? | | ???????#!!! # ! # w #?????????? | | ???????#!! # c # #?????????? | | ???????# ?# cc# w ! #?????????? | | ???????# ?# c@# #?????????? | | ???????########## gcc# #?????????? | | ???????# # c # #?????????? | | ???????# = + A # #?????????? | | ???????# # gg# #?????????? | | ???????# # A# w #?????????? | | ???????# + A##############?????????? | | ######## ## !!! #??????????????????????? | | ## ## !!! #??????????????????????? | | ## ## !!! #??????????????????????? | | ## # #??????????????????????? | | =####+###### #??????????????????????? | | #??# #????# #????##???????##???????? | | = #??# #????##+### #????# ????? #???????? | | #??# #?????????+ /????# #???????? | | #??# #?????????? #????# """" #???????? | | #??# #?????????? #????# """" #???????? | | ] #### #?????????? #????# """" #????? ?? | | + #??????????? #????# """" #???? ?? | | +##+########???????????????????# ???? #??? | | #????????????#####+##???????? ????? #??? | | #????????????# ?########+###### #??? | | #########????# ?# #??? | | ## ! = #????# # #??? | | " + = #????# # #??? | +----------------------------------------------------+ Best States ------------- Heat Dissipation 68 Coolant Potential 120 Energy Generation 69 Energy Capacity 790 Matter Stores 300 Matter Capacity 300 Sight Range 16 Robot Scan Range 20 Terrain Scan Density 10 ECM Strength 2 Power Amplification 20 Additional Mass Support 16 Evasion (%) 76 Offensive Hacking 10 Defensive Hacking 32 Item Schematics ----------------- VTOL Module | -8/Materials | Scanalyzed Exp. Sensor Array | -8/Materials | Scanalyzed Adv. Weight Redist. System | -8/Materials | Scanalyzed Cesium-ion Thruster | -8/Materials | Scanalyzed Lgt. Nuclear Core | -8/Materials | Scanalyzed Med. Storage Unit | -8/Materials | Scanalyzed Imp. Heat Sink | -8/Materials | Scanalyzed Robot Schematics ------------------ None Fabricated ------------ Cesium-ion Thruster | x2 | -7/Factory Cesium-ion Thruster | x2 | -7/Factory Cesium-ion Thruster | x2 | -5/Factory Exp. Signal Interpreter | x1 | -4/Factory | Preloaded Alien Tech Used ----------------- None Achievements -------------- None Challenges ------------ None Game ------ Seed PhaseTeleporterMagmablaster Manual? 0 Play Time 01:11:06 Cumulative 30.5 hours Start 2024.10.24 @ 19:32:24 End 2024.10.24 @ 20:41:48 Sessions 1 Manual Loads 0 Difficulty Rogue Special Mode None Game No. 33 Rogue 32 Adventurer 1 Explorer 0 Win Type - Total 0 Types 0/0/0/0/0/0/0/0/0 Lore% 16 Gallery% 26 Achievement% 27 Wizard Run 0 Options --------- Layout 1 ASCII 0 Keyboard 0 Movement Mouse Keybinds 0 Fullscreen 1 Font 32/SmallcapsGlow Map View 50x35 Zoom Use 0% Tactical HUD 0 Map Filters NONE Filters NONE Steam 1 RUN: 1c9dc9ba-73ab-427c-b408-5bb1700ae73a